bitfinex-derivatives/quotes_BNBF0:USTF0_20250116
["timestamp","ask_amount","ask_price","bid_price","bid_amount"]
[1737032274976,0.27983377,714.71,713.26,0.25734548]
[1737032275174,0.27983377,714.71,713.27,0.25734548]
[1737032275481,0.27983377,714.71,713.28,0.25734548]
[1737032275677,0.27983377,714.71,713.29,0.25734548]
[1737032275877,0.27983377,714.71,713.3,0.25734548]
[1737032276077,0.27983377,714.71,713.31,0.25734548]
[1737032276279,0.27983377,714.71,713.32,0.25734548]
[1737032276479,0.27983377,714.71,713.33,0.25734548]
[1737032276681,0.27983377,714.71,713.34,0.25734548]
[1737032276982,0.27983377,714.71,713.35,0.25734548]
[1737032277182,0.27983377,714.71,713.36,0.25734548]
[1737032277382,0.27983377,714.71,713.22,0.25734548]
[1737032277578,0.27983377,714.71,713.23,0.25734548]
[1737032277783,0.27983377,714.71,713.24,0.25734548]
[1737032278077,0.27983377,714.71,713.25,0.25734548]
[1737032278281,0.27983377,714.71,713.26,0.25734548]
[1737032278479,0.27983377,714.71,713.27,0.25734548]
[1737032278682,0.27983377,714.71,713.28,0.25734548]
[1737032278883,0.27983377,714.71,713.29,0.25734548]
[1737032279079,0.27983377,714.71,713.3,0.25734548]
[1737032279283,0.27983377,714.71,713.31,0.25734548]
[1737032279484,0.27983377,714.71,713.32,0.25734548]
[1737032280084,0.27983377,714.71,713.31,0.921]
[1737032280286,0.27983377,714.71,713.32,0.25739359]
[1737032280783,0.27983377,714.71,713.31,0.921]
[1737032280979,0.27983377,714.71,713.32,0.25741496]
[1737032281687,0.27983377,714.71,713.33,0.25742725]
[1737032281882,0.27983377,714.71,713.34,0.25742725]
[1737032282081,0.27983377,714.71,713.31,0.921]
[1737032282283,0.27983377,714.71,713.32,0.25742635]
[1737032282680,1.04464,714.69,713.31,0.921]
[1737032283678,1.04464,714.69,713.32,0.2573849]
[1737032283881,0.27983377,714.71,713.32,0.2573849]
[1737032284879,0.27983377,714.71,713.33,0.2573828]
[1737032285084,0.27983377,714.71,713.31,0.921]
[1737032285287,0.27983377,714.71,713.32,0.25738617]
[1737032285987,0.27983377,714.71,713.31,0.921]
[1737032286189,0.27983377,714.71,713.32,0.25738312]
[1737032286487,0.27983377,714.71,713.31,0.921]
[1737032286688,0.27983377,714.71,713.32,0.25738617]
[1737032287389,0.27983377,714.71,713.33,0.25735877]
[1737032287691,0.27983377,714.71,713.34,0.25736026]
[1737032287989,0.27983377,714.71,713.35,0.25736026]
[1737032288188,0.27983377,714.71,713.31,0.921]
[1737032288385,0.27983377,714.71,713.32,0.25736179]
[1737032288989,0.27983377,714.71,713.31,0.921]
[1737032291587,0.27983377,714.71,713.32,0.25736473]
[1737032291789,0.27983377,714.71,713.32,0.85685809]
[1737032292584,0.27983377,714.71,713.33,0.25736473]
[1737032292795,1.04464,714.66,713.36,1.04292427]
[1737032292986,1.04464,714.66,713.37,0.25733389]
[1737032293189,1.04464,714.66,713.38,0.25728119]
[1737032293586,1.04464,714.66,713.37,0.25728119]
[1737032293792,1.04464,714.66,713.38,0.25728119]
[1737032293993,1.04464,714.66,713.39,0.25728119]
[1737032294195,1.04464,714.66,713.4,0.25728119]
[1737032294393,0.27983377,714.71,713.41,0.25728119]
[1737032294590,1.04464,715.14,713.42,0.25728119]
[1737032294792,0.27966943,715.13,713.43,0.25728119]
[1737032294988,0.27966943,715.13,713.44,0.25728119]
[1737032295190,0.27966943,715.13,713.45,0.25728119]
[1737032295396,0.27966943,715.13,713.46,0.25728119]
[1737032295597,1.04464,715.04,713.47,0.25728119]
[1737032295800,1.04464,715.04,713.48,0.25728119]
[1737032296095,1.04464,715.04,713.49,0.25732849]
[1737032296323,1.04464,715.04,713.5,0.25732849]
[1737032296497,1.04464,715.04,713.39,0.25732849]
[1737032296694,1.04464,715.04,713.4,0.25733316]
[1737032296895,1.04464,714.96,713.41,0.25733316]
[1737032297194,1.04464,714.96,713.42,0.25733316]
[1737032297398,1.04464,714.96,713.43,0.25733316]
[1737032297596,1.04464,714.96,713.44,0.25733316]
[1737032297899,0.27966943,715.13,713.31,0.921]
[1737032297900,1.04464,714.98,713.45,0.25732003]
[1737032298092,1.04464,714.98,713.46,0.25732003]
[1737032298296,1.04464,714.98,713.47,0.25732003]
[1737032298491,1.04464,714.98,713.48,0.25732003]
[1737032298697,1.04464,714.98,713.33,1.04292427]
[1737032298897,1.04464,714.98,713.34,0.25732225]
[1737032300095,1.04464,714.97,713.34,0.25732225]
[1737032301101,1.04464,714.95,713.34,1.30024652]
[1737032301301,1.04464,714.95,713.35,0.25732225]
[1737032301502,1.04464,714.95,713.36,0.25732544]
[1737032301694,1.04464,714.95,713.37,0.25732544]
[1737032302000,1.04464,714.88,713.4,1.04292427]
[1737032302202,1.04464,714.88,713.41,0.25727242]
[1737032302702,1.04464,714.88,713.42,0.25727242]
[1737032302895,1.04464,714.88,713.43,0.25727242]
[1737032303103,1.04464,714.88,713.44,0.25727242]
[1737032303404,0.27966943,715.13,713.5,1.04292427]
[1737032303599,0.27966943,715.13,713.51,0.25727242]
[1737032304200,0.27966943,715.13,713.57,1.04292427]
[1737032304400,0.27966943,715.13,713.58,0.85593319]
[1737032304898,0.27966943,715.13,713.58,0.25727242]
[1737032305102,0.27966943,715.13,713.57,1.04292427]
[1737032305396,1.04464,715.12,713.6,1.04292427]
[1737032305595,1.04464,715.12,713.61,0.25724349]
[1737032306401,0.27966943,715.13,713.61,0.25724349]
[1737032306598,0.27966943,715.13,713.62,0.25724349]
[1737032306805,0.27966943,715.13,713.63,0.25721837]
[1737032307002,0.27966943,715.13,713.64,0.25721837]
[1737032307203,0.27966943,715.13,713.65,0.25721837]
[1737032307404,0.27966943,715.13,713.66,0.25721588]
[1737032307602,0.27966943,715.13,713.67,0.25721588]
[1737032310103,0.27966943,715.13,713.68,0.25721336]
[1737032310302,0.27966943,715.13,713.67,0.25721336]
[1737032310503,0.27966943,715.13,713.69,0.25721336]
[1737032310700,0.27966943,715.13,713.7,0.25721336]
[1737032310913,0.27966943,715.13,713.71,0.25721336]
[1737032311204,0.27966943,715.13,713.72,0.25721336]
[1737032311399,0.27966943,715.13,713.73,0.25721336]
[1737032311600,0.27966943,715.13,713.66,0.773]
[1737032311601,0.27966943,715.13,713.74,0.25721336]
[1737032311799,0.27966943,715.13,713.75,0.25721336]
[1737032312003,0.27966943,715.13,713.76,0.25721336]
[1737032312208,0.27966943,715.13,713.77,0.25721336]
[1737032312402,0.27966943,715.13,713.78,0.25721336]
[1737032312707,0.27966943,715.13,713.79,0.25721336]
[1737032312904,0.27966943,715.13,713.8,0.25721552]
[1737032313107,0.27966943,715.13,713.67,0.25721552]
[1737032313312,0.27966943,715.13,713.68,0.25721552]
[1737032313510,0.27966943,715.13,713.67,0.25721552]
[1737032313808,0.27966943,715.13,713.68,0.25721552]
[1737032314105,0.27966943,715.13,713.69,0.25721552]
[1737032314408,0.27966943,715.13,713.7,0.25721552]
[1737032314606,0.27966943,715.13,713.71,0.25721552]
[1737032314799,0.27966943,715.13,713.72,0.25721552]
[1737032315004,0.27966943,715.13,713.73,0.25721552]
[1737032315204,0.27966943,715.13,713.74,0.25721552]
[1737032315400,0.27966943,715.13,713.75,0.25721552]
[1737032315601,0.27966943,715.13,713.76,0.25721552]
[1737032315906,0.27966943,715.13,713.77,0.25726774]
[1737032316105,0.27966943,715.13,713.78,0.25726774]
[1737032316301,0.27966943,715.13,713.79,0.25726774]
[1737032316501,0.27966943,715.13,713.8,0.25726774]
[1737032316700,0.27966943,715.13,713.81,0.25726774]
[1737032316899,0.27966943,715.13,713.82,0.25726774]
[1737032317106,0.27966943,715.13,713.83,0.25726774]
[1737032317305,0.27966943,715.13,713.66,0.773]
[1737032317500,0.27966943,715.13,713.67,0.25726643]
[1737032318206,0.27966943,715.13,713.66,0.773]
[1737032322918,0.27966943,715.13,713.67,0.25727557]
[1737032324218,0.27966943,715.13,713.68,0.51456752]
[1737032324419,0.27966943,715.13,713.69,0.25728376]
[1737032324620,1.04464,715.12,713.69,0.25728376]
[1737032325416,1.04464,715.04,713.69,0.25728376]
[1737032326022,1.04464,715.04,713.7,0.25728376]
[1737032326324,1.04464,715.02,713.71,0.25728376]
[1737032326623,1.04464,715.02,713.72,0.25728376]
[1737032326926,1.04464,715.02,713.73,0.25728343]
[1737032327121,1.04464,715.02,713.74,0.25728343]
[1737032327424,0.27966943,715.13,713.75,0.25728343]
[1737032327425,1.04464,714.99,713.75,0.25728343]
[1737032327623,1.04464,714.99,713.76,0.25728343]
[1737032327822,1.04464,714.99,713.76,1.154]
[1737032328624,1.04464,714.95,713.76,1.154]
[1737032329524,1.04464,714.83,713.76,1.154]
[1737032331027,0.74396798,715.12,713.76,1.154]
[1737032331028,1.04464,714.8,713.76,1.154]
[1737032332025,0.27966943,715.13,713.76,1.154]
[1737032332930,1.04464,715.12,713.76,1.154]
[1737032334032,0.27966943,715.13,713.76,1.154]
[1737032336027,1.04464,714.89,713.76,1.154]
[1737032336231,0.27976723,714.88,713.76,1.154]
[1737032336930,1.32440723,714.88,713.76,1.154]
[1737032338731,0.27976723,714.88,713.76,1.154]
[1737032339532,1.04464,714.82,713.76,1.154]
[1737032340129,1.04464,714.86,713.77,0.25733367]
[1737032340530,1.04464,714.86,713.76,1.154]
[1737032341129,0.27976723,714.88,713.76,1.154]
[1737032346643,1.04464,714.74,713.76,1.154]
[1737032347745,1.04464,714.65,713.76,1.154]
[1737032349546,1.04464,714.56,713.76,1.154]
[1737032350638,1.04464,714.52,713.76,1.154]
[1737032351544,1.04464,714.51,713.76,1.154]
[1737032352445,1.04464,714.52,713.76,1.154]
[1737032353348,1.04464,714.68,713.76,1.154]
[1737032354848,1.04464,714.7,713.76,1.154]
[1737032356046,1.04464,714.54,713.76,1.154]
[1737032356945,0.74317382,714.87,713.76,1.154]
[1737032356946,1.04464,714.55,713.76,1.154]
[1737032357846,1.04464,714.7,713.76,1.154]
[1737032360048,0.27976723,714.88,713.76,1.154]
[1737032360049,1.04464,714.71,713.76,1.154]
[1737032361146,1.04464,714.69,713.76,1.154]
[1737032362347,0.27976723,714.88,713.76,1.154]
[1737032362348,1.04464,714.6,713.76,1.154]
[1737032363347,1.04464,714.56,713.76,1.154]
[1737032364249,1.04464,714.54,713.76,1.154]
[1737032365354,1.04464,714.53,713.76,1.154]
[1737032366553,1.04464,714.54,713.76,1.154]
[1737032367754,1.04464,714.64,713.76,1.154]
[1737032368656,1.04464,714.65,713.76,1.154]
[1737032369556,1.04464,714.64,713.76,1.154]
[1737032370155,1.04464,714.54,713.76,1.154]
[1737032371258,1.04464,714.58,713.76,1.154]
[1737032372050,1.04464,714.65,713.76,1.154]
[1737032374455,0.27976723,714.88,713.76,1.154]
[1737032374456,1.04464,714.64,713.76,1.154]
[1737032375554,1.04464,714.62,713.76,1.154]
[1737032376557,1.04464,714.61,713.76,1.154]
[1737032377857,1.04464,714.6,713.76,1.154]
[1737032378655,1.04464,714.58,713.76,1.154]
[1737032379654,1.04464,714.56,713.76,1.154]
[1737032380755,1.04464,714.52,713.76,1.154]
[1737032381759,1.04464,714.44,713.76,1.154]
[1737032382664,1.04464,714.45,713.76,1.154]
[1737032383765,1.04464,714.48,713.76,1.154]
[1737032385766,1.04464,714.49,713.76,1.154]
[1737032388271,1.04464,714.48,713.76,1.154]
[1737032389275,1.04464,714.47,713.76,1.154]
[1737032390474,1.04464,714.46,713.76,1.154]
[1737032391275,1.04464,714.41,713.76,1.154]
[1737032393481,0.74504112,714.87,713.76,1.154]
[1737032393482,1.04464,714.38,713.76,1.154]
[1737032394283,1.04464,714.64,713.76,1.154]
[1737032395581,1.04464,714.63,713.76,1.154]
[1737032396483,1.04464,714.62,713.76,1.154]
[1737032397486,1.04464,714.52,713.76,1.154]
[1737032398588,1.04464,714.49,713.76,1.154]
[1737032399488,1.04464,714.46,713.76,1.154]
[1737032400589,1.04464,714.45,713.76,1.154]
[1737032401890,1.04464,714.5,713.76,1.154]
[1737032402890,1.04464,714.51,713.76,1.154]
[1737032404193,1.04464,714.42,713.76,1.154]
[1737032405393,1.32440723,714.88,713.76,1.154]
[1737032406695,0.27976723,714.88,713.76,1.154]
[1737032410196,1.04464,714.82,713.76,1.154]
[1737032411190,1.04464,714.83,713.76,1.154]
[1737032412298,1.04464,714.84,713.76,1.154]
[1737032413099,1.04464,714.85,713.76,1.154]
[1737032413799,0.27976723,714.88,713.76,1.154]
[1737032416098,1.04464,714.86,713.76,1.154]
[1737032416894,0.27976723,714.88,713.76,1.154]
[1737032424806,1.04464,714.65,713.76,1.154]
[1737032426108,1.04464,714.7,713.76,1.154]
[1737032427008,1.04464,714.68,713.76,1.154]
[1737032428204,1.04464,714.58,713.76,1.154]
[1737032429404,1.04464,714.63,713.76,1.154]
[1737032430713,1.04464,714.6,713.76,1.154]
[1737032431709,1.04464,714.59,713.76,1.154]
[1737032432810,0.74460895,714.87,713.76,1.154]
[1737032432811,1.04464,714.57,713.76,1.154]
[1737032433810,0.74460895,714.87,713.76,1.154]
[1737032433811,1.04464,714.56,713.76,1.154]
[1737032434909,0.74460895,714.87,713.76,1.154]
[1737032434910,1.04464,714.57,713.76,1.154]
[1737032436112,1.04464,714.58,713.76,1.154]
[1737032437115,0.74460895,714.87,713.76,1.154]
[1737032437116,1.04464,714.59,713.76,1.154]
[1737032438717,1.04464,714.6,713.76,1.154]
[1737032439718,1.04464,714.61,713.76,1.154]
[1737032440916,1.04464,714.63,713.76,1.154]
[1737032441811,1.04464,714.87,713.76,1.154]
[1737032441812,1.04464,714.59,713.76,1.154]
[1737032443021,1.04464,714.54,713.76,1.154]
[1737032445616,1.04464,714.53,713.76,1.154]
[1737032446525,1.04464,714.55,713.76,1.154]
[1737032447419,0.74466191,714.87,713.76,1.154]
[1737032447420,1.04464,714.57,713.76,1.154]
[1737032448327,1.04464,714.71,713.76,1.154]
[1737032450726,1.04464,714.64,713.76,1.154]
[1737032452930,1.04464,714.63,713.76,1.154]
[1737032453931,1.04464,714.62,713.76,1.154]
[1737032455825,1.04464,714.6,713.76,1.154]
[1737032456930,0.27976723,714.88,713.76,1.154]
[1737032456931,1.04464,714.55,713.76,1.154]
[1737032457831,1.04464,714.73,713.76,1.154]
[1737032460228,1.04464,714.72,713.76,1.154]
[1737032461430,0.27976723,714.88,713.76,1.154]
[1737032461431,1.04464,714.36,713.76,1.154]
[1737032462532,1.04464,714.35,713.76,1.154]
[1737032463634,1.04464,714.41,713.76,1.154]
[1737032464727,1.04464,714.4,713.76,1.154]
[1737032465532,1.04464,714.41,713.76,1.154]
[1737032466834,1.04464,714.47,713.76,1.154]
[1737032467832,1.04464,714.37,713.76,1.154]
[1737032468833,0.74590558,714.87,713.76,1.154]
[1737032468834,1.04464,714.39,713.76,1.154]
[1737032469831,1.04464,714.42,713.76,1.154]
[1737032470837,1.04464,714.38,713.76,1.154]
[1737032471936,1.04464,714.4,713.76,1.154]
[1737032472937,1.04464,714.42,713.76,1.154]
[1737032474037,1.04464,714.44,713.76,1.154]
[1737032475136,1.04464,714.48,713.76,1.154]
[1737032475938,1.04464,714.5,713.76,1.154]
[1737032479641,1.04464,714.47,713.76,1.154]
[1737032480743,1.32455994,714.49,713.76,1.154]
[1737032481040,0.27992386,714.48,713.76,1.154]
[1737032488039,1.04464,714.39,713.76,1.154]
[1737032488939,1.04464,714.36,713.76,1.154]
[1737032489643,0.27992386,714.48,713.76,1.154]
[1737032489644,1.04464,714.34,713.76,1.154]
[1737032490548,0.27992386,714.48,713.76,1.154]
[1737032490549,1.04464,714.3,713.76,1.154]
[1737032491845,0.27992386,714.48,713.76,1.154]
[1737032492950,1.04464,714.47,713.76,1.154]
[1737032493950,1.04464,714.44,713.76,1.154]
[1737032494856,1.04464,714.4,713.76,1.154]
[1737032496255,1.04464,714.38,713.76,1.154]
[1737032497653,1.04464,714.39,713.76,1.154]
[1737032498353,1.04464,714.44,713.76,1.154]
[1737032499756,0.27992386,714.48,713.76,1.154]
[1737032517368,1.04464,714.44,713.76,1.154]
[1737032518468,1.04464,714.45,713.76,1.154]
[1737032520063,1.04464,714.41,713.76,1.154]
[1737032520463,0.27992386,714.48,713.76,1.154]
[1737032522373,1.04556424,714.33,713.76,1.154]
[1737032523671,1.04556424,714.26,713.76,1.154]
[1737032524673,1.04556424,714.32,713.76,1.154]
[1737032526472,1.04556424,714.35,713.76,1.154]
[1737032526671,0.27992386,714.48,713.76,1.154]
[1737032527775,0.27992386,714.48,713.77,0.25725579]
[1737032527977,0.27992386,714.48,713.22,1.0456499]
[1737032528178,0.27992386,714.48,713.23,0.85566358]
[1737032528377,0.27992386,714.48,713.24,0.25723902]
[1737032528576,0.27992386,714.48,713.25,0.25723902]
[1737032528878,0.27992386,714.48,713.44,1.0456499]
[1737032529178,0.27992386,714.48,713.45,0.85566358]
[1737032529375,0.27992386,714.48,713.46,0.25723902]
[1737032529580,0.27992386,714.48,713.47,0.25723902]
[1737032529780,0.27992386,714.48,713.48,0.25723902]
[1737032530081,0.27992386,714.48,713.49,0.25723902]
[1737032530379,0.27992386,714.48,713.5,0.25723902]
[1737032530675,0.27992386,714.48,713.44,0.842]
[1737032530981,0.27992386,714.48,713.45,0.25721987]
[1737032531478,1.04556424,715.93,713.45,0.25721987]
[1737032531678,0.27940375,715.81,713.45,0.25721987]
[1737032531874,0.27940375,715.81,713.45,0.85543333]
[1737032532074,0.27940375,715.81,713.46,0.85543333]
[1737032532378,0.27940375,715.81,713.47,0.85543333]
[1737032532680,0.27940375,715.81,713.49,0.28031226]
[1737032532980,0.27940375,715.81,713.5,0.85543333]
[1737032533181,0.27940375,715.81,713.51,0.25721987]
[1737032533385,0.27940375,715.81,713.5,0.59821346]
[1737032533582,0.27940375,715.81,713.52,0.25716507]
[1737032533781,0.27940375,715.81,713.53,0.25716507]
[1737032533976,0.27940375,715.81,713.54,0.25716507]
[1737032534177,0.27940375,715.81,713.55,0.25716239]
[1737032534381,0.27940375,715.81,713.56,0.25716239]
[1737032534679,0.27940375,715.81,713.55,0.59799832]
[1737032534882,0.27940375,715.81,713.56,0.85512667]
[1737032535083,0.27940375,715.81,713.57,0.85512667]
[1737032535283,0.27940375,715.81,713.58,0.85512667]
[1737032535477,0.27940375,715.81,713.59,0.85512667]
[1737032535683,0.27940375,715.81,713.6,0.85512667]
[1737032535879,0.27940375,715.81,713.49,0.28031226]
[1737032535880,0.27940375,715.81,713.61,2.34414125]
[1737032536078,0.27940375,715.81,713.62,0.85512667]
[1737032536285,0.27940375,715.81,713.63,0.25715817]
[1737032536584,0.27940375,715.81,713.64,0.25715817]
[1737032536785,0.27940375,715.81,713.65,0.25715817]
[1737032537084,0.27940375,715.81,713.66,0.25715817]
[1737032537278,0.27940375,715.81,713.67,0.25715817]
[1737032537480,0.27940375,715.81,713.68,0.25715817]
[1737032537783,0.27940375,715.81,713.69,0.25715817]
[1737032537985,0.27940375,715.81,713.7,0.25715817]
[1737032538285,0.27940375,715.81,713.71,0.25715817]
[1737032538487,0.27940375,715.81,713.72,0.25715817]
[1737032538781,0.27940375,715.81,713.73,0.25715817]
[1737032538981,0.27940375,715.81,713.67,0.5979685]
[1737032538982,0.27940375,715.81,713.74,0.25715817]
[1737032539183,0.27940375,715.81,713.75,0.25707063]
[1737032539382,0.27940375,715.81,713.76,0.25707063]
[1737032539584,0.27940375,715.81,713.77,0.25706895]
[1737032539784,0.27940375,715.81,713.78,0.25706895]
[1737032539985,0.27940375,715.81,713.79,0.25706895]
[1737032540281,0.27940375,715.81,713.8,0.25706895]
[1737032540589,0.27940375,715.81,713.81,0.25706895]
[1737032540783,0.27940375,715.81,713.82,0.25706895]
[1737032540987,0.27940375,715.81,713.83,0.25706895]
[1737032541283,0.27940375,715.81,713.84,0.25706895]
[1737032541489,0.27940375,715.81,713.85,0.25706895]
[1737032541692,0.27940375,715.81,713.86,0.25706895]
[1737032541887,0.27940375,715.81,713.49,0.28031226]
[1737032542092,0.27940375,715.81,713.5,3.96099345]
[1737032542392,0.27940375,715.81,713.51,0.8543466]
[1737032542590,0.27940375,715.81,713.5,3.10664685]
[1737032542788,0.27940375,715.81,713.51,0.8542566]
[1737032542985,0.27940375,715.81,713.52,0.25708054]
[1737032543187,0.27940375,715.81,713.53,0.25708054]
[1737032543391,0.27940375,715.81,713.54,0.25708054]
[1737032543591,0.27940375,715.81,713.55,0.25708054]
[1737032543791,0.27940375,715.81,713.56,0.25708054]
[1737032543993,0.27940375,715.81,713.57,0.25708054]
[1737032544187,0.27940375,715.81,713.58,0.25708054]
[1737032544392,0.27940375,715.81,713.6,0.28026905]
[1737032544894,0.27940375,715.81,713.61,0.85429017]
[1737032545091,0.27940375,715.81,713.62,0.2571075]
[1737032545292,0.27940375,715.81,713.64,0.28025334]
[1737032545494,0.27940375,715.81,713.65,0.85429017]
[1737032545694,0.27940375,715.81,713.66,0.2571075]
[1737032545895,0.27940375,715.81,713.65,0.59718267]
[1737032545896,0.27940375,715.81,713.67,0.2571075]
[1737032546194,0.27940375,715.81,713.68,0.2571075]
[1737032546390,0.27940375,715.81,713.69,0.2571075]
[1737032546694,0.27940375,715.81,713.7,0.2571075]
[1737032546889,0.27940375,715.81,713.66,3.10011762]
[1737032546890,0.27940375,715.81,713.72,0.28022193]
[1737032547095,0.27940375,715.81,713.73,0.85429017]
[1737032547295,0.27940375,715.81,713.74,0.85408926]
[1737032547497,0.27940375,715.81,713.75,0.25710025]
[1737032547691,0.27940375,715.81,713.76,0.25710025]
[1737032547896,0.27940375,715.81,713.77,0.25710025]
[1737032548096,0.27940375,715.81,713.78,0.25710025]
[1737032548296,0.27940375,715.81,713.79,0.25710025]
[1737032548490,0.27940375,715.81,713.8,0.25710025]
[1737032548690,0.27940375,715.81,713.81,0.25710025]
[1737032548893,0.27940375,715.81,713.82,0.25710025]
[1737032549097,0.27940375,715.81,713.83,0.25710025]
[1737032549292,0.27940375,715.81,713.84,0.25710025]
[1737032549495,0.27940375,715.81,713.85,0.25710025]
[1737032549694,0.27940375,715.81,713.87,0.28016305]
[1737032549898,0.27940375,715.81,713.88,0.85408926]
[1737032550096,0.27940375,715.81,713.89,0.25710025]
[1737032550297,0.27940375,715.81,713.9,0.2570873]
[1737032550498,0.27940375,715.81,713.91,0.2570873]
[1737032550797,0.27940375,715.81,713.92,0.2570873]
[1737032550998,0.27940375,715.81,713.87,0.28016305]
[1737032551297,0.27940375,715.81,713.88,0.25708611]
[1737032551897,0.27940375,715.81,713.88,0.59686511]
[1737032552193,0.27940375,715.81,713.89,0.25708611]
[1737032552398,0.27940375,715.81,713.87,0.28016305]
[1737032552594,0.27940375,715.81,713.88,0.85394257]
[1737032552794,0.27940375,715.81,713.9,0.28015128]
[1737032552995,0.27940375,715.81,713.91,0.25708611]
[1737032553196,0.27940375,715.81,713.9,0.28015128]
[1737032553399,0.27940375,715.81,713.92,0.25708254]
[1737032553593,0.27940375,715.81,713.93,0.25708254]
[1737032553795,0.27940375,715.81,713.94,0.25708254]
[1737032553997,0.27940375,715.81,713.95,0.25708254]
[1737032554297,0.27940375,715.81,713.96,0.25708254]
[1737032554498,0.27940375,715.81,713.97,0.25708254]
[1737032554696,0.27940375,715.81,713.98,0.25708254]
[1737032554897,0.27940375,715.81,713.99,0.25708254]
[1737032555098,0.27940375,715.81,714.0,0.25708254]
[1737032555291,0.27940375,715.81,714.01,0.25708254]
[1737032555492,0.27940375,715.81,714.02,0.25708254]
[1737032555696,0.27940375,715.81,714.03,0.25708254]
[1737032555899,0.27940375,715.81,714.04,0.25706865]
[1737032556100,0.27940375,715.81,714.05,0.25706865]
[1737032556296,0.27940375,715.81,714.06,0.25706865]
[1737032556497,0.27940375,715.81,713.94,0.5967127]
[1737032556498,0.27940375,715.81,714.07,0.25706865]
[1737032556694,0.27940375,715.81,714.08,0.25706865]
[1737032556891,0.27940375,715.81,714.09,0.25706865]
[1737032557201,0.27940375,715.81,714.1,0.25706865]
[1737032557400,0.27940375,715.81,713.9,0.28015128]
[1737032557401,0.27940375,715.81,714.11,0.25706865]
[1737032557702,0.27940375,715.81,714.12,0.25706865]
[1737032557897,0.27940375,715.81,713.91,0.59670801]
[1737032557898,0.27940375,715.81,714.13,0.25706865]
[1737032558200,0.27940375,715.81,713.91,0.59670801]
[1737032558201,0.27940375,715.81,713.92,0.25706865]
[1737032558501,0.27940375,715.81,713.93,0.25706865]
[1737032558704,0.27940375,715.81,713.94,0.5141368]
[1737032558901,0.27940375,715.81,713.95,0.2570684]
[1737032559102,0.27940375,715.81,713.96,0.2570684]
[1737032559401,0.27940375,715.81,713.97,0.25706294]
[1737032559595,0.27940375,715.81,713.98,0.25706294]
[1737032559800,0.27940375,715.81,713.99,0.25706294]
[1737032560000,0.27940375,715.81,714.0,0.25706294]
[1737032560200,0.27940375,715.81,714.01,0.25706294]
[1737032560401,0.27940375,715.81,714.02,0.25706294]
[1737032560702,0.27940375,715.81,714.03,0.25706294]
[1737032561100,0.27940375,715.81,713.92,0.25706294]
[1737032561400,0.27940375,715.81,714.03,0.851]
[1737032561703,0.27940375,715.81,714.04,0.85370322]
[1737032561895,0.27940375,715.81,714.05,0.25706294]
[1737032562099,0.27940375,715.81,714.06,0.25706294]
[1737032562401,0.27940375,715.81,714.04,0.59664028]
[1737032562402,0.27940375,715.81,714.07,0.25706294]
[1737032562596,0.27940375,715.81,714.08,0.25698383]
[1737032562800,0.27940375,715.81,714.09,0.25698383]
[1737032563000,0.27940375,715.81,714.1,0.25698383]
[1737032563201,0.27940375,715.81,714.11,0.25698383]
[1737032563401,0.27940375,715.81,714.12,0.25698383]
[1737032563603,0.27940375,715.81,714.13,0.25698383]
[1737032563803,0.27940375,715.81,714.14,0.25698383]
[1737032564004,0.27940375,715.81,714.17,1.0456499]
[1737032564301,0.27940375,715.81,714.18,0.8528736]
[1737032564501,0.27940375,715.81,714.19,0.25693107]
[1737032564701,0.27940375,715.81,714.2,0.25693107]
[1737032564902,0.27940375,715.81,714.3,1.0456499]
[1737032565102,0.27940375,715.81,714.31,0.8528736]
[1737032565300,0.27940375,715.81,714.32,0.25693107]
[1737032565503,0.27940375,715.81,714.33,0.25693107]
[1737032565699,0.27940375,715.81,714.34,0.25693107]
[1737032565906,0.27940375,715.81,714.37,1.0456499]
[1737032566106,0.27940375,715.81,714.38,0.25693107]
[1737032566301,0.27940375,715.81,714.39,0.25693107]
[1737032566511,0.27940375,715.81,714.4,0.25693107]
[1737032566706,0.27940375,715.81,714.41,0.25693107]
[1737032566906,0.27940375,715.81,714.42,0.25693107]
[1737032567104,0.27940375,715.81,714.43,0.25697679]
[1737032567305,0.27940375,715.81,714.44,0.25697679]
[1737032567509,0.27940375,715.81,714.45,0.25697679]
[1737032567708,0.27940375,715.81,714.27,1.0456499]
[1737032567906,0.27940375,715.81,714.28,0.85325061]
[1737032568111,0.27940375,715.81,714.31,1.0456499]